bitfinex/quotes_SOLUSD_20260228
["timestamp","ask_amount","ask_price","bid_price","bid_amount"]
[1772315443549,4.41661731,84.599,84.56,3.00857726]
[1772315443863,4.41661731,84.599,84.558,3.21140553]
[1772315444358,4.41661731,84.599,84.561,3.21140553]
[1772315444558,11.82061041,84.598,84.562,3.21140553]
[1772315444762,3.00857726,84.61,84.571,3.21140553]
[1772315444959,4.47080985,84.609,84.571,3.21140553]
[1772315446265,44.37489778,84.61,84.571,3.21140553]
[1772315446266,4.47080985,84.599,84.571,3.21140553]
[1772315447352,4.23502565,84.597,84.564,3.21140553]
[1772315449064,4.23502565,84.595,84.565,11.8252232]
[1772315449267,4.23502565,84.589,84.565,11.8252232]
[1772315449653,4.23502565,84.589,84.566,3.21140553]
[1772315452371,4.23502565,84.597,84.568,3.21140553]
[1772315453451,4.23502565,84.595,84.568,3.21140553]
[1772315453653,3.00857726,84.6,84.568,3.21140553]
[1772315454271,11.82033084,84.601,84.562,3.21140553]
[1772315454272,3.00857726,84.59,84.562,3.21140553]
[1772315454474,4.23502565,84.589,84.562,3.21140553]
[1772315455952,4.23502565,84.589,84.561,11.82578257]
[1772315456172,4.23502565,84.587,84.558,15.03760766]
[1772315456358,4.23502565,84.587,84.559,3.21140553]
[1772315458067,4.23502565,84.599,84.561,3.21140553]
[1772315458756,4.23502565,84.597,84.563,3.21140553]
[1772315460176,4.23502565,84.589,84.557,15.03769457]
[1772315460376,4.23502565,84.589,84.558,3.21140553]
[1772315460683,4.23502565,84.587,84.56,3.21140553]
[1772315461954,11.82033096,84.6,84.571,3.21140553]
[1772315462154,16.05535661,84.6,84.571,3.21140553]
[1772315462557,4.23502565,84.599,84.571,3.21140553]
[1772315462773,4.23502565,84.599,84.573,3.21140553]
[1772315465579,11.82061041,84.598,84.573,3.21140553]
[1772315465751,11.82061041,84.598,84.552,1.7587047]
[1772315465752,4.23502565,84.589,84.553,15.038307]
[1772315466154,4.23502565,84.589,84.554,3.21140553]
[1772315467680,4.23502565,84.589,84.556,3.21140553]
[1772315468383,4.23502565,84.599,84.561,3.21140553]
[1772315469482,16.05549634,84.599,84.573,3.21140553]
[1772315470189,4.23502565,84.598,84.573,3.21140553]
[1772315470376,4.23502565,84.598,84.555,29.56655431]
[1772315470377,4.23502565,84.598,84.556,15.03788738]
[1772315470573,4.23502565,84.589,84.557,3.21140553]
[1772315471382,4.23502565,84.579,84.541,3.21140553]
[1772315471593,4.23502565,84.577,84.549,11.82735213]
[1772315473592,4.23502565,84.559,84.524,3.21140553]
[1772315473875,4.23502565,84.559,84.527,3.21140553]
[1772315474411,4.23502565,84.549,84.522,3.21140553]
[1772315475174,4.23502565,84.549,84.513,3.21140553]
[1772315475989,4.23502565,84.519,84.49,0.1]
[1772315476587,4.49370094,84.509,84.48,0.2]
[1772315476794,4.49370094,84.499,84.48,0.2]
[1772315477983,4.49370094,84.498,84.48,0.2]
[1772315478203,11.83449877,84.499,84.46,0.1]
[1772315478204,4.49370094,84.489,84.46,0.1]
[1772315478392,4.49370094,84.479,84.46,0.1]
[1772315479903,4.49370094,84.479,84.441,11.84258831]
[1772315480093,11.83740145,84.478,84.441,11.84258831]
[1772315480290,4.49370094,84.477,84.441,15.45399384]
[1772315480496,4.49370094,84.477,84.442,3.61140553]
[1772315481705,4.49370094,84.477,84.444,3.61140553]
[1772315481909,4.49370094,84.475,84.444,3.61140553]
[1772315482491,4.49370094,84.475,84.44,0.2]
[1772315482692,4.49370094,84.459,84.44,0.2]
[1772315483406,4.49370094,84.449,84.42,0.2]
[1772315483609,4.49370094,84.429,84.42,0.2]
[1772315483915,4.49370094,84.429,84.4,0.1]
[1772315483916,4.49370094,84.429,84.4,20.03061014]
[1772315484207,4.49370094,84.429,84.4,11.94826216]
[1772315484386,4.49370094,84.429,84.4,0.1]
[1772315484992,4.49370094,84.437,84.401,4.01140553]
[1772315485514,4.49370094,84.437,84.401,15.85960638]
[1772315485700,4.49370094,84.435,84.401,15.85960638]
[1772315486714,4.49370094,84.429,84.4,0.1]
[1772315486889,4.49370094,84.429,84.383,1.76222698]
[1772315486890,4.49370094,84.409,84.383,1.76222698]
[1772315487090,4.49370094,84.409,84.384,11.85058778]
[1772315487905,4.49370094,84.418,84.383,1.76222698]
[1772315488107,4.49370094,84.389,84.346,4.01140553]
[1772315488309,4.49370094,84.379,84.341,11.8565606]
[1772315488613,4.49370094,84.379,84.343,4.11140553]
[1772315489105,4.49370094,84.369,84.34,0.1]
[1772315489592,4.49370094,84.387,84.35,12.29375351]
[1772315489907,11.85030692,84.386,84.352,15.96648898]
[1772315490108,4.49370094,84.369,84.35,0.1]
[1772315491310,4.49370094,84.369,84.34,0.1]
[1772315491513,4.49370094,84.377,84.35,8.08234798]
[1772315491709,4.49370094,84.404,84.361,4.21140553]
[1772315491893,4.49370094,84.404,84.381,11.85100911]
[1772315492299,4.49370094,84.404,84.38,8.08234798]
[1772315492694,4.49370094,84.404,84.36,4.21140553]
[1772315492894,4.49370094,84.402,84.362,4.21140553]
[1772315493098,4.49370094,84.402,84.37,8.08234798]
[1772315494499,4.49370094,84.379,84.346,11.85592677]
[1772315494797,4.49370094,84.389,84.351,4.21140553]
[1772315495013,4.49370094,84.389,84.36,8.08234798]
[1772315495210,4.49370094,84.398,84.361,4.21140553]
[1772315496225,4.49370094,84.398,84.37,8.08234798]
[1772315496923,16.34115442,84.407,84.372,4.21140553]
[1772315497313,4.49370094,84.406,84.372,4.21140553]
[1772315498327,4.49370094,84.406,84.371,11.85241374]
[1772315498328,4.49370094,84.424,84.391,4.21140553]
[1772315498530,4.49370094,84.424,84.4,8.08234798]
[1772315498707,4.49370094,84.424,84.391,4.21140553]
[1772315498905,59.20007139,84.46,84.372,1.18522732]
[1772315498906,8.08234798,84.42,84.38,8.08234798]
[1772315499106,11.84567455,84.419,84.39,8.08234798]
[1772315499509,4.49370094,84.418,84.39,8.08234798]
[1772315499709,4.49370094,84.418,84.381,4.21140553]
[1772315500731,4.49370094,84.416,84.383,4.21140553]
[1772315501403,4.49370094,84.416,84.38,8.08234798]
[1772315501602,4.49370094,84.416,84.38,19.93343992]
[1772315502226,4.49370094,84.416,84.383,1.76222698]
[1772315502729,4.49370094,84.414,84.383,1.76222698]
[1772315503834,4.49370094,84.434,84.401,4.21140553]
[1772315504013,4.49370094,84.419,84.384,4.21140553]
[1772315504219,4.49370094,84.419,84.39,8.08234798]
[1772315505622,4.36806423,84.417,84.39,8.08234798]
[1772315507019,59.21077533,84.445,84.383,5.97363251]
[1772315507020,4.15707075,84.409,84.383,1.76222698]
[1772315508011,11.84721827,84.408,84.384,11.85058778]
[1772315508208,29.61146016,84.427,84.384,11.85058778]
[1772315508209,4.15707075,84.427,84.384,11.85058778]
[1772315508413,4.5,84.419,84.383,1.76222698]
[1772315508614,53.3,84.475,84.383,1.76222698]
[1772315508615,4.5,84.409,84.383,1.76222698]
[1772315510335,4.5,84.407,84.383,1.76222698]
[1772315510834,41.46526395,84.408,84.341,11.85662963]
[1772315510835,4.15707075,84.389,84.341,11.85662963]
[1772315511137,4.15707075,84.379,84.341,11.85662963]
[1772315512415,4.15707075,84.377,84.34,0.1]
[1772315513326,4.15707075,84.377,84.34,8.18234798]
[1772315515636,4.15707075,84.375,84.34,0.1]
[1772315515823,4.15707075,84.397,84.361,1.76222698]
[1772315516224,4.15707075,84.397,84.37,8.08234798]
[1772315516947,4.15707075,84.389,84.34,1.28567702]
[1772315517133,4.15707075,84.379,84.341,1.76222698]
[1772315517934,4.15707075,84.377,84.342,11.85648905]
[1772315518116,4.15707075,84.377,84.342,13.61871603]
[1772315519733,4.15707075,84.375,84.342,13.61871603]
[1772315520624,4.15707075,84.375,84.342,11.85648905]
[1772315520940,4.15707075,84.349,84.297,11.86269643]
[1772315521121,4.15707075,84.329,84.296,11.86295909]
[1772315521436,4.15707075,84.329,84.292,1.96222698]
[1772315521622,4.15707075,84.346,84.301,1.96222698]
[1772315521823,4.15707075,84.344,84.303,1.96222698]
[1772315522025,8.08234798,84.34,84.303,1.96222698]
[1772315522220,8.08234798,84.34,84.291,29.65915696]
[1772315522221,4.15707075,84.329,84.296,11.8628227]
[1772315523630,4.15707075,84.327,84.296,11.8628227]
[1772315526145,4.15707075,84.325,84.291,11.86366278]
[1772315526449,4.15707075,84.325,84.292,1.96222698]
[1772315527333,4.15707075,84.299,84.279,1e-08]
[1772315527531,100.79927898,84.326,84.279,1e-08]
[1772315527532,4.15707075,84.289,84.279,1e-08]
[1772315528235,4.15707075,84.288,84.279,1e-08]
[1772315528445,4.15707075,84.288,84.26,0.2]
[1772315528847,4.15707075,84.279,84.26,0.2]
[1772315529036,4.15707075,84.29,84.261,11.86788668]
[1772315529241,4.15707075,84.3,84.27,8.08234798]
[1772315529534,4.15707075,84.3,84.261,11.86788668]
[1772315529535,4.15707075,84.339,84.29,8.08234798]
[1772315529839,4.15707075,84.339,84.301,1.96222698]
[1772315530356,4.15707075,84.339,84.31,8.08234798]
[1772315530549,4.15707075,84.348,84.31,10.04457496]
[1772315531434,4.15707075,84.348,84.31,1.96222698]
[1772315531643,4.15707075,84.348,84.31,8.08234798]
[1772315532323,4.15707075,84.348,84.32,8.08234798]
[1772315532724,4.15707075,84.359,84.33,8.08234798]
[1772315532927,8.08234798,84.35,84.31,8.08234798]
[1772315533235,4.15707075,84.349,84.31,8.08234798]
[1772315533549,4.15707075,84.349,84.32,8.08234798]
[1772315533848,4.15707075,84.358,84.32,10.04457496]
[1772315534051,8.08234798,84.35,84.303,1.1861974]
[1772315534345,4.15707075,84.309,84.261,11.86788668]
[1772315534544,4.15707075,84.299,84.261,11.86788668]
[1772315534755,4.15707075,84.299,84.261,41.53760339]
[1772315535638,4.15707075,84.311,84.271,1.96222698]
[1772315535830,4.15707075,84.309,84.27,8.08234798]
[1772315536148,4.15707075,84.309,84.261,41.53760339]
[1772315536334,4.15707075,84.299,84.261,41.53760339]
[1772315536651,4.15707075,84.299,84.261,11.86788668]
[1772315537442,4.15707075,84.299,84.27,8.08234798]
[1772315537746,4.15707075,84.299,84.271,11.86647838]
[1772315539030,4.20000485,84.319,84.271,41.53267434]
[1772315539244,4.20000485,84.319,84.28,8.08234798]
[1772315539749,4.20000485,84.317,84.281,11.86507041]
[1772315539959,4.20000485,84.336,84.301,1.96222698]
[1772315540134,4.20000485,84.336,84.31,8.08234798]
[1772315541345,4.20000485,84.336,84.311,11.86084852]
[1772315541550,4.20000485,84.334,84.301,11.86225548]
[1772315545960,4.20000485,84.332,84.301,11.86225548]
[1772315547461,4.20000485,84.329,84.282,11.86492964]
[1772315547652,4.20000485,84.319,84.291,1.96222698]
[1772315547856,4.20000485,84.33,84.291,1.96222698]
[1772315548059,4.20000485,84.33,84.3,8.10764546]
[1772315549547,4.20000485,84.33,84.282,41.52725374]
[1772315549548,4.20000485,84.328,84.292,11.86352204]
[1772315549954,4.20000485,84.328,84.3,8.10764546]
[1772315550754,4.20000485,84.328,84.286,11.86427447]
[1772315551066,4.20000485,84.299,84.26,0.2]
[1772315551268,4.20000485,84.289,84.26,0.2]
[1772315551466,4.20000485,84.279,84.26,0.2]
[1772315552055,4.20000485,84.299,84.261,4.07828094]
[1772315552372,4.20000485,84.309,84.261,4.07828094]
[1772315552569,4.20000485,84.299,84.261,4.07828094]
[1772315553452,4.20000485,84.299,84.262,11.86774584]
[1772315553765,4.20000485,84.297,84.262,11.86774584]
[1772315555069,4.20000485,84.297,84.263,4.07828094]
[1772315555369,4.20000485,84.279,84.26,0.2]
[1772315557550,11.86453202,84.285,84.26,0.2]
[1772315557768,4.20000485,84.289,84.26,0.2]
[1772315557769,4.20000485,84.289,84.261,11.86788668]
[1772315558163,4.20000485,84.289,84.262,4.07828094]
[1772315560569,4.20000485,84.289,84.261,11.86788668]
[1772315560753,4.20000485,84.287,84.26,0.2]
[1772315560953,4.20000485,84.287,84.26,12.06794953]
[1772315562675,4.20000485,84.269,84.231,11.87211359]
[1772315562973,4.20000485,84.269,84.231,15.95039453]
[1772315563177,4.20000485,84.269,84.231,11.87211359]
[1772315563553,41.52528296,84.286,84.222,4.07828094]
[1772315563554,4.20000485,84.259,84.226,11.87270418]
[1772315563974,4.20000485,84.259,84.231,4.07828094]
[1772315564860,4.0808667,84.279,84.241,4.09767442]
[1772315565076,4.0808667,84.288,84.251,4.09767442]
[1772315565754,4.0808667,84.287,84.242,4.09767442]
[1772315565957,11.86420534,84.288,84.22,4.29767442]
[1772315565958,4.0808667,84.259,84.22,4.29767442]
[1772315566157,8.10764546,84.26,84.22,4.29767442]
[1772315566158,4.0808667,84.27,84.24,8.10764546]
[1772315566455,4.41267206,84.287,84.241,4.2444714]
[1772315566762,4.41267206,84.287,84.251,4.2444714]
[1772315566962,11.86436656,84.286,84.252,16.11362584]
[1772315567157,4.41267206,84.285,84.252,16.11362584]
[1772315567673,4.41267206,84.285,84.252,11.86915444]
[1772315567881,4.41267206,84.279,84.231,4.2444714]
[1772315568060,4.41267206,84.279,84.241,4.2444714]
[1772315568262,4.41267206,84.279,84.231,4.2444714]
[1772315568976,4.41267206,84.269,84.233,4.2444714]
[1772315570983,4.41267206,84.269,84.234,11.87169076]
[1772315571184,4.41267206,84.269,84.235,4.2444714]
[1772315572261,11.86356487,84.292,84.261,4.2444714]
[1772315572568,4.41267206,84.291,84.261,4.2444714]
[1772315572759,4.41267206,84.291,84.252,4.2444714]
[1772315573088,4.41267206,84.289,84.253,11.86901356]
[1772315574086,4.41267206,84.289,84.243,4.2444714]
[1772315574271,4.41267206,84.279,84.244,11.87028156]
[1772315575083,4.41267206,84.277,84.235,11.87154983]
[1772315575391,4.41267206,84.277,84.235,16.11602123]
[1772315575582,4.41267206,84.277,84.236,4.2444714]
[1772315575770,4.41267206,84.277,84.24,8.10764546]
[1772315575972,4.41267206,84.277,84.241,4.2444714]
[1772315576586,8.10764546,84.27,84.241,4.2444714]
[1772315576894,4.41267206,84.277,84.241,4.2444714]
[1772315577269,4.41267206,84.277,84.242,11.87056337]
[1772315577473,11.94487104,84.41,84.228,4.2444714]
[1772315577474,4.41267206,84.271,84.228,4.2444714]
[1772315577693,12.52031752,84.27,84.228,4.2444714]
[1772315578073,4.41267206,84.269,84.228,4.2444714]
[1772315578988,4.41267206,84.269,84.231,4.2444714]
[1772315579194,8.10764546,84.3,84.229,41.55338422]
[1772315579195,8.10764546,84.28,84.241,4.2444714]
[1772315579786,4.41267206,84.279,84.241,4.2444714]
[1772315580177,4.41267206,84.269,84.232,4.2444714]
[1772315580388,8.10764546,84.26,84.232,4.2444714]
[1772315581294,8.10764546,84.26,84.233,16.1163031]
[1772315581491,4.41267206,84.269,84.234,4.2444714]
[1772315582669,8.10764546,84.29,84.251,4.2444714]
[1772315582873,12.52031752,84.29,84.251,4.2444714]
[1772315583177,4.41267206,84.289,84.251,4.2444714]
[1772315583490,4.41267206,84.289,84.25,8.10764546]
[1772315583491,4.41267206,84.289,84.253,4.2444714]
[1772315584683,8.10764546,84.3,84.261,4.2444714]
[1772315584884,4.41267206,84.299,84.261,4.2444714]
[1772315585387,4.41267206,84.299,84.262,11.86774584]
[1772315586079,4.41267206,84.299,84.263,4.2444714]
[1772315587004,4.41267206,84.289,84.262,11.86774584]
[1772315587205,4.41267206,84.298,84.263,4.2444714]
[1772315588000,4.41267206,84.298,84.265,4.2444714]
[1772315590004,4.41267206,84.298,84.266,16.11165389]
[1772315590501,4.41267206,84.298,84.267,4.2444714]
[1772315592604,4.41267206,84.298,84.268,11.86690084]
[1772315592899,4.41267206,84.298,84.269,4.2444714]
[1772315593102,3.03016483,84.31,84.271,4.2444714]
[1772315593293,3.03016483,84.32,84.281,4.2444714]
[1772315593494,4.41267206,84.323,84.281,4.2444714]
[1772315593804,4.41267206,84.323,84.291,4.2444714]
[1772315594499,4.41267206,84.323,84.293,4.2444714]
[1772315595397,8.111402,84.32,84.293,4.2444714]
[1772315595599,12.52407406,84.32,84.293,4.2444714]
[1772315596593,12.52407406,84.32,84.294,11.86324056]
[1772315597181,4.2785792,84.328,84.295,4.34086994]
[1772315598695,4.2785792,84.336,84.297,4.34086994]
[1772315598895,12.3899812,84.33,84.297,4.34086994]
[1772315599592,4.2785792,84.329,84.297,4.34086994]
[1772315600812,4.2785792,84.329,84.299,4.34086994]
[1772315602218,4.2785792,84.337,84.301,4.34086994]
[1772315602513,4.2785792,84.349,84.301,4.34086994]
[1772315602915,4.2785792,84.349,84.303,4.34086994]
[1772315603414,4.2785792,84.349,84.311,4.34086994]
[1772315604812,8.10941104,84.36,84.294,4.34086994]
[1772315604813,4.2785792,84.329,84.294,4.34086994]
[1772315606816,4.2785792,84.329,84.295,41.52084938]
[1772315607048,4.2785792,84.329,84.296,4.34086994]
[1772315608925,4.2785792,84.329,84.301,4.34086994]
[1772315609421,4.2785792,84.327,84.297,11.86281836]
[1772315609633,3.69383402,84.359,84.301,4.34086994]
[1772315609803,8.10941104,84.34,84.301,4.34086994]
[1772315610524,8.10941104,84.36,84.311,4.34086994]
[1772315610815,8.10941104,84.35,84.311,4.34086994]
[1772315611016,8.10941104,84.36,84.321,4.34086994]
[1772315611514,8.10941104,84.35,84.321,4.34086994]
[1772315611707,4.2785792,84.349,84.321,4.34086994]
[1772315613210,4.2785792,84.339,84.312,11.86070784]
[1772315613401,4.2785792,84.339,84.313,4.34086994]
[1772315614611,4.2785792,84.347,84.315,4.34086994]
[1772315617121,4.2785792,84.347,84.317,4.34086994]
[1772315619124,4.2785792,84.347,84.319,4.34086994]
[1772315621623,29.63499216,84.36,84.306,4.34086994]
[1772315621624,4.2785792,84.329,84.306,4.34086994]
[1772315621817,4.2785792,84.336,84.306,4.34086994]
[1772315624006,4.2785792,84.336,84.308,4.34086994]
[1772315624409,3.02651433,84.34,84.308,4.34086994]
[1772315625028,4.28747292,84.339,84.308,4.34086994]
[1772315625321,4.28747292,84.349,84.308,4.34086994]
[1772315625510,4.28747292,84.349,84.311,4.17092413]
[1772315626011,4.28747292,84.358,84.313,4.17092413]
[1772315626213,4.28747292,84.358,84.321,4.17092413]
[1772315628129,4.42066069,84.349,84.322,11.85930124]
[1772315628320,3.02651433,84.33,84.305,4.19848482]
[1772315628524,4.42066069,84.329,84.305,4.19848482]
[1772315629426,4.42066069,84.329,84.308,11.86113161]
[1772315630827,4.42066069,84.329,84.296,4.19848482]
[1772315632519,4.42066069,84.329,84.298,4.19848482]
[1772315635231,4.42066069,84.329,84.3,4.19848482]
[1772315638430,4.42066069,84.329,84.302,4.19848482]
[1772315639331,4.42066069,84.344,84.302,4.19848482]
[1772315639533,3.02651433,84.34,84.302,4.19848482]
[1772315639730,7.44717502,84.34,84.302,4.19848482]
[1772315640035,4.42066069,84.339,84.302,4.19848482]
[1772315641120,4.42066069,84.339,84.301,41.5178942]
[1772315641121,4.42066069,84.338,84.304,4.19848482]
[1772315644322,4.42066069,84.336,84.306,4.19848482]
[1772315644734,4.42066069,84.343,84.307,4.19848482]
[1772315645132,4.42066069,84.343,84.311,4.19848482]
[1772315645330,4.42066069,84.359,84.331,4.19848482]
[1772315645635,3.02651433,84.36,84.331,4.19848482]
[1772315645840,4.42066069,84.359,84.331,4.19848482]
[1772315646343,4.42066069,84.359,84.332,11.85789498]
[1772315646641,4.42066069,84.359,84.333,4.19848482]
[1772315646842,4.42066069,84.378,84.341,4.19848482]
[1772315648921,4.42066069,84.378,84.343,4.19848482]
[1772315649627,4.42066069,84.379,84.351,4.19848482]
[1772315650925,4.42066069,84.379,84.342,41.49771169]
[1772315650926,11.85143046,84.378,84.344,11.85620791]
[1772315651245,4.42066069,84.377,84.345,4.19848482]
[1772315653021,11.85143046,84.378,84.346,11.85592677]
[1772315653229,4.42066069,84.384,84.351,4.19848482]
[1772315653522,3.22651433,84.39,84.351,4.19848482]
[1772315653523,4.62066069,84.39,84.351,4.19848482]
[1772315654443,4.42066069,84.417,84.381,4.19848482]
[1772315654742,4.42066069,84.441,84.41,3.02651433]
[1772315654945,4.42066069,84.441,84.411,4.19848482]
[1772315655143,4.42066069,84.428,84.403,4.19848482]
[1772315655744,4.42066069,84.428,84.403,16.04640055]
[1772315657351,4.42066069,84.428,84.404,4.28582639]
[1772315658354,4.42066069,84.428,84.37,4.28582639]
[1772315658355,4.26303913,84.409,84.37,4.28582639]
[1772315658557,4.26303913,84.399,84.37,16.13838061]
[1772315658729,4.26303913,84.399,84.371,4.28582639]
[1772315659564,4.26303913,84.399,84.373,4.28582639]
[1772315661542,4.26303913,84.415,84.375,4.28582639]
[1772315661747,4.26303913,84.415,84.381,4.28582639]
[1772315665355,4.26303913,84.415,84.383,4.28582639]
[1772315666047,4.26303913,84.419,84.385,4.28582639]
[1772315667033,4.26303913,84.419,84.387,4.28582639]
[1772315670967,4.26303913,84.419,84.389,4.28582639]
[1772315671260,4.26303913,84.419,84.391,4.28582639]
[1772315672944,4.26303913,84.419,84.393,4.28582639]
[1772315673853,3.02158922,84.42,84.393,4.28582639]
[1772315674257,7.28462835,84.42,84.393,4.28582639]
[1772315674582,4.26303913,84.419,84.393,4.28582639]
[1772315675062,4.26303913,84.419,84.395,4.28582639]
[1772315675266,0.2,84.43,84.401,4.28582639]
[1772315675567,0.2,84.43,84.396,1.18489027]
[1772315675568,0.2,84.43,84.411,4.28582639]
[1772315676451,0.2,84.43,84.412,11.84665687]
[1772315676650,0.2,84.43,84.413,4.28582639]
[1772315677947,0.2,84.43,84.414,11.84637619]
[1772315678147,4.26303913,84.451,84.421,4.28582639]
[1772315678365,3.02158922,84.46,84.421,4.28582639]
[1772315678366,4.8552442,84.446,84.421,4.28582639]
[1772315678562,4.8552442,84.446,84.414,11.84637619]
[1772315678868,4.8552442,84.446,84.41,4.28582639]
[1772315678869,4.26303913,84.439,84.41,4.28582639]
[1772315679765,4.26303913,84.439,84.412,4.28582639]
[1772315680574,4.8552442,84.446,84.412,4.28582639]
[1772315680866,4.8552442,84.446,84.42,7.30741561]
[1772315681165,4.26303913,84.439,84.406,16.1332059]
[1772315681548,4.26303913,84.439,84.407,4.28582639]
[1772315682583,4.26303913,84.437,84.409,4.28582639]
[1772315684481,4.26303913,84.437,84.41,11.84693756]
[1772315684661,4.26303913,84.437,84.411,4.33522292]
[1772315685866,29.60066479,84.458,84.41,11.84693756]
[1772315685867,4.08848367,84.461,84.432,4.33522292]
[1772315686077,4.08848367,84.459,84.432,4.33522292]
[1772315686367,4.14540129,84.439,84.408,4.34781122]
[1772315686549,4.14540129,84.437,84.405,4.34781122]
[1772315690777,4.14540129,84.437,84.4,3.02158922]
[1772315690778,4.14540129,84.437,84.407,4.34781122]
[1772315691277,15.98869088,84.436,84.407,4.34781122]
[1772315691458,4.14540129,84.435,84.407,4.34781122]
[1772315692173,4.14540129,84.449,84.411,4.34781122]
[1772315693474,4.14540129,84.449,84.412,11.84665687]
[1772315693777,4.14540129,84.449,84.413,4.34781122]
[1772315694578,4.14540129,84.447,84.415,4.34781122]
[1772315696777,4.14540129,84.439,84.406,4.34781122]
[1772315698282,4.14540129,84.439,84.408,4.34781122]
[1772315698979,4.14540129,84.446,84.411,4.34781122]
[1772315701181,4.14540129,84.444,84.413,4.34781122]
[1772315701891,4.14540129,84.439,84.413,4.34781122]
[1772315702971,4.14540129,84.439,84.414,11.84637619]
[1772315703168,4.14540129,84.437,84.408,16.19499094]
[1772315703373,4.14540129,84.437,84.408,10.8986073]
[1772315704987,4.14540129,84.429,84.392,13.8]
[1772315705173,4.14540129,84.429,84.39,3.02158922]
[1772315705174,4.14540129,84.419,84.39,11.84965187]
[1772315705375,4.14540129,84.419,84.383,16.19843926]
[1772315706690,4.14540129,84.417,84.383,16.19843926]
[1772315707679,4.14540129,84.417,84.384,4.34781122]
[1772315708987,3.02158922,84.44,84.361,14.98538187]
[1772315708988,4.14540129,84.449,84.411,4.34781122]
[1772315710570,4.14540129,84.429,84.396,4.34781122]
[1772315710978,4.14540129,84.429,84.397,16.19657361]
[1772315711187,4.14540129,84.429,84.398,4.34781122]
[1772315711388,4.14540129,84.429,84.4,3.02158922]
[1772315711590,4.14540129,84.435,84.41,3.02158922]
[1772315711777,59.19656383,84.465,84.41,3.02158922]
[1772315711778,4.14540129,84.441,84.411,4.34781122]
[1772315711981,3.02158922,84.45,84.411,4.34781122]
[1772315711982,4.14540129,84.448,84.411,4.34781122]
[1772315713096,4.14540129,84.446,84.413,4.34781122]
[1772315714172,4.14540129,84.446,84.412,11.84665687]
[1772315714370,4.14540129,84.446,84.407,16.19516985]
[1772315715306,4.14540129,84.444,84.408,4.34781122]
[1772315715784,4.14540129,84.439,84.407,11.84735863]
[1772315716388,41.44709573,84.445,84.39,4.3390444]
[1772315716389,4.37103665,84.429,84.39,4.3390444]
[1772315716692,4.37103665,84.429,84.391,4.3390444]
[1772315717478,4.37103665,84.427,84.392,4.3390444]
[1772315722185,4.37103665,84.425,84.394,4.3390444]
[1772315722688,4.37103665,84.425,84.393,11.84932399]
[1772315723002,4.37103665,84.419,84.387,4.3390444]
[1772315724697,4.37103665,84.432,84.4,3.02158922]
[1772315724909,4.37103665,84.432,84.401,4.3390444]
[1772315725782,4.37103665,84.43,84.401,4.3390444]
[1772315726286,4.37103665,84.43,84.39,13.8]
[1772315726287,4.37103665,84.429,84.391,4.3390444]
[1772315726785,4.37103665,84.427,84.392,11.8494644]
[1772315727200,4.37103665,84.427,84.392,16.1885088]
[1772315727402,4.37103665,84.427,84.393,4.3390444]
[1772315728816,4.37103665,84.435,84.401,4.3390444]
[1772315729812,3.02048154,84.45,84.39,3.02048154]
[1772315729813,4.37103665,84.429,84.39,3.02048154]
[1772315729997,4.37103665,84.429,84.389,11.84974603]
[1772315730505,4.37103665,84.429,84.389,16.18879043]
[1772315730705,4.37103665,84.429,84.39,4.3390444]
[1772315730890,4.37103665,84.427,84.392,4.3390444]
[1772315732311,4.32732628,84.399,84.371,4.3390444]
[1772315734320,16.17594828,84.398,84.371,4.3390444]
[1772315735109,4.32732628,84.397,84.371,4.3390444]
[1772315736401,4.32732628,84.395,84.371,4.3390444]
[1772315737717,4.32732628,84.393,84.371,4.3390444]
[1772315738513,11.84918359,84.394,84.371,4.3390444]
[1772315739114,16.17592875,84.399,84.371,4.3390444]
[1772315740915,16.17592875,84.399,84.373,4.3390444]
[1772315741304,103.2,84.432,84.372,11.85227326]
[1772315741305,4.32732628,84.418,84.381,4.3390444]
[1772315742391,11.84595519,84.417,84.373,11.85213279]
[1772315742599,3.02048154,84.38,84.342,4.3390444]
[1772315742813,3.02048154,84.37,84.342,4.3390444]
[1772315744620,11.85269471,84.369,84.342,4.3390444]
[1772315744921,11.8520759,84.374,84.343,4.47471394]
[1772315745334,15.91391046,84.374,84.343,4.47471394]
[1772315745502,4.06183456,84.373,84.343,4.47471394]
[1772315746323,4.1436073,84.402,84.361,4.08711178]
[1772315746501,4.1436073,84.402,84.371,4.08711178]
[1772315747015,4.1436073,84.389,84.351,4.08711178]
[1772315748712,4.1436073,84.387,84.353,4.08711178]
[1772315749641,3.02048154,84.38,84.353,4.08711178]
[1772315749822,4.1436073,84.379,84.353,4.08711178]
[1772315751219,4.1436073,84.369,84.339,4.08711178]
[1772315751715,4.1436073,84.369,84.341,4.08711178]
[1772315753209,11.85283519,84.368,84.341,4.08711178]
[1772315753530,4.1436073,84.367,84.341,4.08711178]
[1772315755325,15.99672348,84.366,84.341,4.08711178]
[1772315756029,11.85092224,84.382,84.351,4.08711178]
[1772315756209,11.85058778,84.384,84.351,4.08711178]
[1772315756410,15.99419508,84.384,84.351,4.08711178]
[1772315756818,11.84971233,84.391,84.351,4.08711178]
[1772315757220,4.1436073,84.391,84.353,4.08711178]
[1772315759232,4.1436073,84.397,84.361,4.08711178]